[Event "*** Titled Tuesday Blitz"]
[Site "Chess.com"]
[Date "2020.01.07"]
[Round "1"]
[White "chesstatour"]
[Black "TST2014"]
[Result "1-0"]
[WhiteElo "1979"]
[BlackElo "2505"]
[TimeControl "180+2"]
[EndTime "13:11:00 PST"]
[Termination "chesstatour won on time"]

1. c4 {[%clk 0:02:59.4]} 1... Nf6 {[%clk 0:03:00.5]} 2. Nc3 {[%clk 0:02:58.9]}
2... g6 {[%clk 0:02:59.7]} 3. Nf3 {[%clk 0:02:58]} 3... Bg7 {[%clk 0:03:00.7]}
4. d4 {[%clk 0:02:59.3]} 4... O-O {[%clk 0:03:01.4]} 5. g3 {[%clk 0:03:00.9]}
5... d6 {[%clk 0:03:02.6]} 6. Bg2 {[%clk 0:03:02.3]} 6... c5 {[%clk 0:03:03.3]}
7. O-O {[%clk 0:03:03]} 7... Nc6 {[%clk 0:03:03.8]} 8. dxc5 {[%clk 0:02:56.5]}
8... dxc5 {[%clk 0:03:04]} 9. Qxd8 {[%clk 0:02:56.3]} 9... Rxd8 {[%clk
0:03:04.3]} 10. Be3 {[%clk 0:02:57.9]} 10... b6 {[%clk 0:02:57.3]} 11. Rfd1
{[%clk 0:02:57.4]} 11... Bb7 {[%clk 0:02:43.3]} 12. h3 {[%clk 0:02:49.6]} 12...
e6 {[%clk 0:02:23.8]} 13. Rac1 {[%clk 0:02:18.6]} 13... h6 {[%clk 0:02:20.1]}
14. b3 {[%clk 0:01:22.9]} 14... Nd7 {[%clk 0:02:04.4]} 15. Nb5 {[%clk
0:01:10.3]} 15... Nb4 {[%clk 0:01:49.4]} 16. a3 {[%clk 0:00:55.4]} 16... Na6
{[%clk 0:01:42.7]} 17. Rd2 {[%clk 0:00:38.8]} 17... Nab8 {[%clk 0:00:42.4]} 18.
Nc7 {[%clk 0:00:37.8]} 18... a6 {[%clk 0:00:37.2]} 19. Nxa8 {[%clk 0:00:38.6]}
19... Bxa8 {[%clk 0:00:39.1]} 20. Rcd1 {[%clk 0:00:39.3]} 20... Kf8 {[%clk
0:00:40.2]} 21. Bf4 {[%clk 0:00:34.1]} 21... Bc6 {[%clk 0:00:26]} 22. Bxb8
{[%clk 0:00:30.5]} 22... Rxb8 {[%clk 0:00:27.2]} 23. Rxd7 {[%clk 0:00:31.4]}
23... Bxd7 {[%clk 0:00:28.8]} 24. Rxd7 {[%clk 0:00:32.9]} 24... b5 {[%clk
0:00:30.4]} 25. cxb5 {[%clk 0:00:27.3]} 25... axb5 {[%clk 0:00:31.3]} 26. Rc7
{[%clk 0:00:25.1]} 26... b4 {[%clk 0:00:22.1]} 27. a4 {[%clk 0:00:25]} 27... Rd8
{[%clk 0:00:23.2]} 28. Rxc5 {[%clk 0:00:20.3]} 28... Rd1+ {[%clk 0:00:24.6]} 29.
Kh2 {[%clk 0:00:21]} 29... Rb1 {[%clk 0:00:25.9]} 30. Nd2 {[%clk 0:00:11.6]}
30... Rb2 {[%clk 0:00:25.7]} 31. Nc4 {[%clk 0:00:11.2]} 31... Rxb3 {[%clk
0:00:26.1]} 32. a5 {[%clk 0:00:12.5]} 32... Rc3 {[%clk 0:00:26.2]} 33. a6 {[%clk
0:00:13.4]} 33... Bd4 {[%clk 0:00:21.5]} 34. a7 {[%clk 0:00:10.3]} 34... Bxc5
{[%clk 0:00:22.8]} 35. a8=Q+ {[%clk 0:00:11.5]} 35... Kg7 {[%clk 0:00:22.6]} 36.
Qa1 {[%clk 0:00:10]} 36... Bxf2 {[%clk 0:00:22.2]} 37. Nd2 {[%clk 0:00:09.6]}
37... Bxg3+ {[%clk 0:00:22.8]} 38. Kg1 {[%clk 0:00:10.2]} 38... Be5 {[%clk
0:00:24]} 39. Qa5 {[%clk 0:00:09.2]} 39... Rc1+ {[%clk 0:00:19.8]} 40. Kf2
{[%clk 0:00:09]} 40... Bd4+ {[%clk 0:00:20.9]} 41. e3 {[%clk 0:00:09.5]} 41...
Bc3 {[%clk 0:00:22.3]} 42. Ne4 {[%clk 0:00:09.4]} 42... Be1+ {[%clk 0:00:21.9]}
43. Ke2 {[%clk 0:00:09.9]} 43... b3 {[%clk 0:00:23.1]} 44. Qb5 {[%clk
0:00:08.8]} 44... Rb1 {[%clk 0:00:12.9]} 45. Qe5+ {[%clk 0:00:09.5]} 45... Kg8
{[%clk 0:00:13.1]} 46. Nf6+ {[%clk 0:00:09.6]} 46... Kf8 {[%clk 0:00:14.4]} 47.
Nd7+ {[%clk 0:00:08.8]} 47... Ke7 {[%clk 0:00:15.6]} 48. Qe4 {[%clk 0:00:07.2]}
48... Rc1 {[%clk 0:00:12.8]} 49. Ne5 {[%clk 0:00:05.4]} 49... b2 {[%clk
0:00:12.6]} 50. Qb7+ {[%clk 0:00:06.4]} 50... Kd6 {[%clk 0:00:13.6]} 51. Nxf7+
{[%clk 0:00:06.8]} 51... Kc5 {[%clk 0:00:14]} 52. Qxb2 {[%clk 0:00:07.7]} 52...
Rc4 {[%clk 0:00:13.9]} 53. Kxe1 {[%clk 0:00:07.2]} 53... Rb4 {[%clk 0:00:14.9]}
54. Qe5+ {[%clk 0:00:06.7]} 54... Kb6 {[%clk 0:00:15.3]} 55. Kf2 {[%clk
0:00:07.3]} 55... Rb2+ {[%clk 0:00:15.8]} 56. Kf3 {[%clk 0:00:08.2]} 56... Rb5
{[%clk 0:00:16.3]} 57. Qxe6+ {[%clk 0:00:08.9]} 57... Ka5 {[%clk 0:00:17.3]} 58.
Ne5 {[%clk 0:00:10.4]} 58... Kb4 {[%clk 0:00:16.4]} 59. Qd6+ {[%clk 0:00:09.9]}
59... Ka5 {[%clk 0:00:17.5]} 60. Nxg6 {[%clk 0:00:11]} 60... Rf5+ {[%clk
0:00:18.3]} 61. Ke2 {[%clk 0:00:11.1]} 61... Rg5 {[%clk 0:00:19.4]} 62. Nf4
{[%clk 0:00:11.1]} 62... Kb5 {[%clk 0:00:18.8]} 63. Qd7+ {[%clk 0:00:11.4]}
63... Kc4 {[%clk 0:00:19.6]} 64. Qf7+ {[%clk 0:00:11]} 64... Kc3 {[%clk
0:00:17.9]} 65. Qf6+ {[%clk 0:00:11.4]} 65... Kc2 {[%clk 0:00:19]} 66. Be4+
{[%clk 0:00:11.3]} 66... Kc1 {[%clk 0:00:19.5]} 67. Qxg5 {[%clk 0:00:11.5]}
67... hxg5 {[%clk 0:00:18.6]} 68. Ne6 {[%clk 0:00:12.7]} 68... Kb2 {[%clk
0:00:18.7]} 69. Nxg5 {[%clk 0:00:13.6]} 69... Kc3 {[%clk 0:00:19.4]} 70. h4
{[%clk 0:00:14.7]} 1-0

[Event "*** Titled Tuesday Blitz"]
[Site "Chess.com"]
[Date "2020.01.07"]
[Round "1"]
[White "benhal"]
[Black "Heineccius"]
[Result "1/2-1/2"]
[WhiteElo "2335"]
[BlackElo "2655"]
[TimeControl "180+2"]
[EndTime "13:11:21 PST"]
[Termination "Game drawn by agreement"]

1. e4 {[%clk 0:02:57.9]} 1... c5 {[%clk 0:03:00.5]} 2. Nc3 {[%clk 0:02:57.9]}
2... e6 {[%clk 0:03:00.5]} 3. f4 {[%clk 0:02:56.9]} 3... Nc6 {[%clk 0:02:59]} 4.
Nf3 {[%clk 0:02:58.5]} 4... d5 {[%clk 0:02:58.6]} 5. Bb5 {[%clk 0:02:59.5]} 5...
Ne7 {[%clk 0:02:58.7]} 6. O-O {[%clk 0:02:58.7]} 6... dxe4 {[%clk 0:02:52.7]} 7.
Nxe4 {[%clk 0:02:59]} 7... a6 {[%clk 0:02:54.1]} 8. Be2 {[%clk 0:02:54.7]} 8...
Nf5 {[%clk 0:02:54.7]} 9. d3 {[%clk 0:02:53.7]} 9... Be7 {[%clk 0:02:53.8]} 10.
a4 {[%clk 0:02:53.8]} 10... O-O {[%clk 0:02:54]} 11. Kh1 {[%clk 0:02:44.9]}
11... b6 {[%clk 0:02:48.1]} 12. c3 {[%clk 0:02:46.2]} 12... Bb7 {[%clk
0:02:48.7]} 13. Qc2 {[%clk 0:02:42.5]} 13... Qc7 {[%clk 0:02:44]} 14. Bd2 {[%clk
0:02:43.6]} 14... Rad8 {[%clk 0:02:37.2]} 15. Rae1 {[%clk 0:02:41.2]} 15... Rfe8
{[%clk 0:02:36.6]} 16. Nfg5 {[%clk 0:02:30]} 16... h6 {[%clk 0:02:29.1]} 17. Nf3
{[%clk 0:02:24.7]} 17... Nd6 {[%clk 0:02:04.7]} 18. Ng3 {[%clk 0:02:22.2]} 18...
Bf8 {[%clk 0:02:01.6]} 19. Ne5 {[%clk 0:02:09.6]} 19... Nf5 {[%clk 0:01:53.5]}
20. Bh5 {[%clk 0:01:47.6]} 20... Nxe5 {[%clk 0:01:36.4]} 21. fxe5 {[%clk
0:01:49.5]} 21... g6 {[%clk 0:01:35.6]} 22. Nxf5 {[%clk 0:01:31.4]} 22... exf5
{[%clk 0:01:34.4]} 23. Bf3 {[%clk 0:01:33.3]} 23... Bxf3 {[%clk 0:01:31]} 24.
gxf3 {[%clk 0:01:35.2]} 24... Qd7 {[%clk 0:00:51.4]} 25. Re3 {[%clk 0:01:34.6]}
25... h5 {[%clk 0:00:42.2]} 26. f4 {[%clk 0:01:30.2]} 26... Qd5+ {[%clk
0:00:41.6]} 27. Kg1 {[%clk 0:01:31.2]} 27... Bh6 {[%clk 0:00:40.4]} 28. Rg3
{[%clk 0:01:30.7]} 28... Re6 {[%clk 0:00:40.2]} 29. c4 {[%clk 0:01:16.4]} 29...
Qd4+ {[%clk 0:00:39]} 30. Kg2 {[%clk 0:01:17]} 30... Kh7 {[%clk 0:00:35.8]} 31.
Bc3 {[%clk 0:01:17.2]} 31... Qd7 {[%clk 0:00:34.4]} 32. b4 {[%clk 0:01:15.7]}
32... Qc6+ {[%clk 0:00:32.9]} 33. Kg1 {[%clk 0:01:15.6]} 33... cxb4 {[%clk
0:00:33.8]} 34. Bxb4 {[%clk 0:01:17.5]} 34... Rd4 {[%clk 0:00:35.2]} 35. Bd2
{[%clk 0:01:13.5]} 35... Qd7 {[%clk 0:00:33.5]} 36. Bc3 {[%clk 0:01:11.3]} 36...
Rxf4 {[%clk 0:00:33.4]} 37. d4 {[%clk 0:01:05.7]} 37... Rxd4 {[%clk 0:00:34]}
38. Bxd4 {[%clk 0:01:05.6]} 38... Qxd4+ {[%clk 0:00:35.1]} 39. Kg2 {[%clk
0:01:04.8]} 39... Rxe5 {[%clk 0:00:33.7]} 40. Qd3 {[%clk 0:01:04.7]} 40... Qc5
{[%clk 0:00:28.8]} 41. Qd7 {[%clk 0:00:46.1]} 41... Re7 {[%clk 0:00:28.9]} 42.
Qd5 {[%clk 0:00:46.5]} 42... Qc7 {[%clk 0:00:24.8]} 43. Rxf5 {[%clk 0:00:44.2]}
43... Rd7 {[%clk 0:00:08.5]} 44. Qf3 {[%clk 0:00:44.7]} 44... Qxc4 {[%clk
0:00:08]} 45. Rf6 {[%clk 0:00:23.7]} 45... Qc2+ {[%clk 0:00:08.5]} 46. Kh3
{[%clk 0:00:25.3]} 46... Qc4 {[%clk 0:00:09.9]} 47. Rxb6 {[%clk 0:00:24.7]}
47... h4 {[%clk 0:00:10.6]} 48. Rg4 {[%clk 0:00:24.8]} 48... Qa2 {[%clk
0:00:08.4]} 49. Rxh4 {[%clk 0:00:24.2]} 49... Qc2 {[%clk 0:00:06.5]} 50. Rf6
{[%clk 0:00:23]} 50... Rd3 {[%clk 0:00:06.8]} 51. Rxf7+ {[%clk 0:00:23.5]} 51...
Kg8 {[%clk 0:00:08.2]} 52. Rxh6 {[%clk 0:00:21.3]} 52... Rxf3+ {[%clk
0:00:08.6]} 53. Rxf3 {[%clk 0:00:23.2]} 53... Qc8+ {[%clk 0:00:09.2]} 54. Kg2
{[%clk 0:00:22.9]} 54... Qc2+ {[%clk 0:00:09.8]} 55. Kh3 {[%clk 0:00:24]} 55...
Kg7 {[%clk 0:00:10.2]} 56. Rh4 {[%clk 0:00:24.8]} 56... Qe2 {[%clk 0:00:11.5]}
57. Kg3 {[%clk 0:00:25.2]} 57... Qe1+ {[%clk 0:00:12.2]} 58. Rf2 {[%clk
0:00:25.5]} 58... Qe3+ {[%clk 0:00:12.5]} 59. Rf3 {[%clk 0:00:26.5]} 59... Qe1+
{[%clk 0:00:13.6]} 60. Kh3 {[%clk 0:00:27.1]} 60... g5 {[%clk 0:00:14.4]} 61.
Rg4 {[%clk 0:00:28.1]} 61... Kg6 {[%clk 0:00:14.9]} 62. Rfg3 {[%clk 0:00:28.3]}
62... Qf1+ {[%clk 0:00:16.1]} 63. Rg2 {[%clk 0:00:29.5]} 63... Qf3+ {[%clk
0:00:17.2]} 64. R2g3 {[%clk 0:00:31]} 64... Qf1+ {[%clk 0:00:18.2]} 65. Rg2
{[%clk 0:00:32.3]} 65... Qf5 {[%clk 0:00:19.6]} 66. Rg3 {[%clk 0:00:32.8]} 66...
Kh5 {[%clk 0:00:19.4]} 67. Kg2 {[%clk 0:00:34.1]} 67... Qc2+ {[%clk 0:00:20.2]}
68. Kg1 {[%clk 0:00:35.4]} 68... Qd1+ {[%clk 0:00:21.3]} 69. Kg2 {[%clk
0:00:36.7]} 69... Qe2+ {[%clk 0:00:22.1]} 70. Kg1 {[%clk 0:00:37.5]} 70... Qe1+
{[%clk 0:00:23.4]} 71. Kg2 {[%clk 0:00:38.8]} 71... Qe2+ {[%clk 0:00:24.5]} 72.
Kh3 {[%clk 0:00:36.8]} 72... Qf1+ {[%clk 0:00:25.1]} 73. Rg2 {[%clk 0:00:37.4]}
73... Qf5 {[%clk 0:00:25.4]} 74. Rg3 {[%clk 0:00:38.7]} 74... Kh6 {[%clk
0:00:25.4]} 75. Kg2 {[%clk 0:00:39]} 75... Qc2+ {[%clk 0:00:26.7]} 76. Kg1
{[%clk 0:00:40.3]} 76... Qd1+ {[%clk 0:00:27.6]} 77. Kg2 {[%clk 0:00:41.2]}
77... Qe2+ {[%clk 0:00:28.6]} 78. Kg1 {[%clk 0:00:42.4]} 78... Qe1+ {[%clk
0:00:28.3]} 79. Kg2 {[%clk 0:00:43.7]} 79... Qe2+ {[%clk 0:00:28.9]} 80. Kg1
{[%clk 0:00:44.7]} 80... Qe1+ {[%clk 0:00:30.1]} 81. Kg2 {[%clk 0:00:45]}
1/2-1/2

[Event "*** Titled Tuesday Blitz"]
[Site "Chess.com"]
[Date "2020.01.07"]
[Round "1"]
[White "AntonSmirnov"]
[Black "enriquetejedor"]
[Result "1/2-1/2"]
[WhiteElo "2876"]
[BlackElo "2478"]
[TimeControl "180+2"]
[EndTime "13:11:46 PST"]
[Termination "Game drawn by repetition"]

1. e4 {[%clk 0:03:00.8]} 1... e6 {[%clk 0:02:57.3]} 2. d4 {[%clk 0:03:01.4]}
2... d5 {[%clk 0:02:56.2]} 3. exd5 {[%clk 0:03:02.7]} 3... exd5 {[%clk 0:02:57]}
4. Qf3 {[%clk 0:03:03.1]} 4... c6 {[%clk 0:02:44.6]} 5. Bd3 {[%clk 0:03:01.9]}
5... Qf6 {[%clk 0:02:41.9]} 6. c3 {[%clk 0:03:02.3]} 6... Bd6 {[%clk 0:02:40.1]}
7. Be3 {[%clk 0:03:01.5]} 7... Be6 {[%clk 0:02:38.3]} 8. Nd2 {[%clk 0:03:02]}
8... Nd7 {[%clk 0:02:35.3]} 9. O-O-O {[%clk 0:03:01.8]} 9... O-O-O {[%clk
0:02:32.3]} 10. Re1 {[%clk 0:03:00.5]} 10... h6 {[%clk 0:02:28.6]} 11. Qd1
{[%clk 0:02:58.1]} 11... Bf5 {[%clk 0:02:21]} 12. Qc2 {[%clk 0:02:53.6]} 12...
Ne7 {[%clk 0:02:20]} 13. Ngf3 {[%clk 0:02:52.4]} 13... Rhe8 {[%clk 0:02:13.4]}
14. h3 {[%clk 0:02:45.9]} 14... Kb8 {[%clk 0:02:00.3]} 15. Re2 {[%clk
0:02:45.6]} 15... Bxd3 {[%clk 0:02:00.4]} 16. Qxd3 {[%clk 0:02:46.6]} 16... Qf5
{[%clk 0:02:01.9]} 17. Kc2 {[%clk 0:02:47.3]} 17... Qxd3+ {[%clk 0:01:53.7]} 18.
Kxd3 {[%clk 0:02:49.2]} 18... f5 {[%clk 0:01:55.2]} 19. Rhe1 {[%clk 0:02:47.8]}
19... g5 {[%clk 0:01:49.5]} 20. g3 {[%clk 0:02:34.7]} 20... Ng6 {[%clk
0:01:49.7]} 21. Bf4 {[%clk 0:02:34.1]} 21... Nxf4+ {[%clk 0:01:37]} 22. gxf4
{[%clk 0:02:35.3]} 22... Rxe2 {[%clk 0:01:38.9]} 23. Rxe2 {[%clk 0:02:37.1]}
23... Bxf4 {[%clk 0:01:40.4]} 24. Re6 {[%clk 0:02:33.9]} 24... Rh8 {[%clk
0:01:04]} 25. Re7 {[%clk 0:02:29.5]} 25... Kc8 {[%clk 0:00:57.8]} 26. Rf7 {[%clk
0:02:29.8]} 26... Rf8 {[%clk 0:00:55.3]} 27. Rh7 {[%clk 0:02:30.4]} 27... g4
{[%clk 0:00:56.7]} 28. Ng1 {[%clk 0:02:26.1]} 28... Nf6 {[%clk 0:00:51.1]} 29.
Rg7 {[%clk 0:02:26.6]} 29... Bxd2 {[%clk 0:00:50]} 30. Kxd2 {[%clk 0:02:27.3]}
30... Ne4+ {[%clk 0:00:51.2]} 31. Ke2 {[%clk 0:02:27]} 31... h5 {[%clk
0:00:51.5]} 32. f3 {[%clk 0:02:24.1]} 32... Nd6 {[%clk 0:00:43.6]} 33. Rh7
{[%clk 0:02:22.1]} 33... Re8+ {[%clk 0:00:40.7]} 34. Kf1 {[%clk 0:02:22.8]}
34... gxf3 {[%clk 0:00:38.5]} 35. Nxf3 {[%clk 0:02:21.3]} 35... Re3 {[%clk
0:00:39.1]} 36. Kf2 {[%clk 0:02:21.8]} 36... f4 {[%clk 0:00:40]} 37. Ng5 {[%clk
0:02:07.4]} 37... Ne4+ {[%clk 0:00:31.6]} 38. Nxe4 {[%clk 0:02:08.2]} 38... dxe4
{[%clk 0:00:33.5]} 39. Rxh5 {[%clk 0:02:00]} 39... Rf3+ {[%clk 0:00:34.7]} 40.
Ke2 {[%clk 0:02:00.6]} 40... Re3+ {[%clk 0:00:35.5]} 41. Kf2 {[%clk 0:02:01.6]}
41... Rf3+ {[%clk 0:00:36.9]} 42. Ke1 {[%clk 0:01:58.1]} 42... Rg3 {[%clk
0:00:31.9]} 43. Rf5 {[%clk 0:01:48.4]} 43... f3 {[%clk 0:00:25.2]} 44. Re5
{[%clk 0:01:48.1]} 44... Rg1+ {[%clk 0:00:20.8]} 45. Kf2 {[%clk 0:01:49.2]}
45... Rg2+ {[%clk 0:00:22.1]} 46. Kf1 {[%clk 0:01:50.2]} 46... Rxb2 {[%clk
0:00:04.4]} 47. Rxe4 {[%clk 0:01:51]} 47... Rh2 {[%clk 0:00:05.4]} 48. h4 {[%clk
0:01:44.9]} 48... Rxa2 {[%clk 0:00:06.1]} 49. Rf4 {[%clk 0:01:38.2]} 49... Rh2
{[%clk 0:00:06.9]} 50. Kg1 {[%clk 0:01:39.4]} 50... Rh3 {[%clk 0:00:07.8]} 51.
Kf2 {[%clk 0:01:40.7]} 51... Kc7 {[%clk 0:00:06.5]} 52. Ke3 {[%clk 0:01:41]}
52... a5 {[%clk 0:00:05.6]} 53. Kd3 {[%clk 0:01:40.9]} 53... b5 {[%clk
0:00:05.4]} 54. h5 {[%clk 0:01:33.9]} 54... f2+ {[%clk 0:00:04.5]} 55. Kc2
{[%clk 0:01:34.2]} 55... Rh2 {[%clk 0:00:04.7]} 56. Kb3 {[%clk 0:01:35.3]} 56...
Rxh5 {[%clk 0:00:04.5]} 57. Rxf2 {[%clk 0:01:35.9]} 57... Kb6 {[%clk 0:00:05.8]}
58. Rf8 {[%clk 0:01:37.1]} 58... Rh1 {[%clk 0:00:05.9]} 59. Kb2 {[%clk
0:01:37.6]} 59... Rh2+ {[%clk 0:00:06.3]} 60. Kb3 {[%clk 0:01:37.7]} 60... Rh1
{[%clk 0:00:08.2]} 61. Kb2 {[%clk 0:01:36.8]} 61... Rh7 {[%clk 0:00:09.7]} 62.
Kb3 {[%clk 0:01:37.2]} 62... Rg7 {[%clk 0:00:10.1]} 63. Re8 {[%clk 0:01:37.8]}
63... Rf7 {[%clk 0:00:11.1]} 64. Rb8+ {[%clk 0:01:38.8]} 64... Kc7 {[%clk
0:00:11.9]} 65. Ra8 {[%clk 0:01:40]} 65... Kb6 {[%clk 0:00:11.8]} 66. Rb8+
{[%clk 0:01:41.4]} 66... Rb7 {[%clk 0:00:13.2]} 67. Rc8 {[%clk 0:01:41.5]} 67...
Rc7 {[%clk 0:00:14.5]} 68. Rb8+ {[%clk 0:01:42.8]} 68... Ka7 {[%clk 0:00:15.9]}
69. Rh8 {[%clk 0:01:43.7]} 69... Kb7 {[%clk 0:00:17.4]} 70. Rh5 {[%clk
0:01:44.2]} 70... Rd7 {[%clk 0:00:18.8]} 71. Rh8 {[%clk 0:01:43.4]} 71... Re7
{[%clk 0:00:18.8]} 72. Rh1 {[%clk 0:01:43.7]} 72... Re3 {[%clk 0:00:19.6]} 73.
Rh7+ {[%clk 0:01:44.7]} 73... Kb6 {[%clk 0:00:20.8]} 74. Kb2 {[%clk 0:01:45.6]}
74... b4 {[%clk 0:00:21.5]} 75. cxb4 {[%clk 0:01:42.2]} 75... axb4 {[%clk
0:00:23.4]} 76. Kc2 {[%clk 0:01:41.8]} 76... Rc3+ {[%clk 0:00:23.6]} 77. Kd2
{[%clk 0:01:41.1]} 77... Kb5 {[%clk 0:00:24.5]} 78. Rc7 {[%clk 0:01:39.6]} 78...
Rc4 {[%clk 0:00:22.7]} 79. Kd3 {[%clk 0:01:38.6]} 79... Rc3+ {[%clk 0:00:24.1]}
80. Kd2 {[%clk 0:01:36.6]} 80... Rh3 {[%clk 0:00:26]} 81. Kc2 {[%clk 0:01:31.4]}
81... Rg3 {[%clk 0:00:25.5]} 82. Rc8 {[%clk 0:01:31.8]} 82... Rg7 {[%clk
0:00:25.9]} 83. Kb3 {[%clk 0:01:29.9]} 83... Rg3+ {[%clk 0:00:26.7]} 84. Kc2
{[%clk 0:01:31.1]} 84... Ra3 {[%clk 0:00:20.6]} 85. Rc7 {[%clk 0:01:30.2]} 85...
Kb6 {[%clk 0:00:20]} 86. Rc8 {[%clk 0:01:30.6]} 86... Kb7 {[%clk 0:00:21.3]} 87.
Rh8 {[%clk 0:01:31.6]} 87... Rg3 {[%clk 0:00:21.5]} 88. Rf8 {[%clk 0:01:29.1]}
88... Kc7 {[%clk 0:00:21.6]} 89. Rh8 {[%clk 0:01:28.9]} 89... Rc3+ {[%clk
0:00:20.3]} 90. Kd2 {[%clk 0:01:29.6]} 90... Rf3 {[%clk 0:00:22.2]} 91. Kc2
{[%clk 0:01:30.6]} 91... Ra3 {[%clk 0:00:19.4]} 92. Rg8 {[%clk 0:01:30.5]} 92...
Rh3 {[%clk 0:00:14.5]} 93. Rf8 {[%clk 0:01:31.2]} 93... Rg3 {[%clk 0:00:11.9]}
94. Rh8 {[%clk 0:01:31.5]} 94... Kd6 {[%clk 0:00:13.3]} 95. Rd8+ {[%clk
0:01:30.3]} 95... Kc7 {[%clk 0:00:10.3]} 96. Rh8 {[%clk 0:01:30.8]} 1/2-1/2